bitfinex/quotes_SOLUSD_20250728
["timestamp","ask_amount","ask_price","bid_price","bid_amount"]
[1753704547976,0.71,191.85,191.84,120.41263605]
[1753704548772,0.03,191.85,191.84,120.41263605]
[1753704549450,0.71,191.85,191.84,120.41263605]
[1753704550655,0.03,191.85,191.84,120.41263605]
[1753704551360,0.03,191.85,191.84,125.62531328]
[1753704551669,0.03,191.88,191.87,26.0]
[1753704551900,0.03,191.88,191.87,31.85831291]
[1753704552067,0.03,191.88,191.87,37.0701751]
[1753704556394,0.03,191.88,191.87,125.3101751]
[1753704556886,0.71,191.88,191.87,120.38263605]
[1753704557513,0.03,191.88,191.87,120.38263605]
[1753704558611,0.71,191.88,191.87,120.38263605]
[1753704558807,0.71,191.88,191.87,120.09831291]
[1753704561805,0.03,191.88,191.87,120.09831291]
[1753704562491,0.71,191.88,191.87,114.24]
[1753704562817,5.92159057,191.88,191.87,114.24]
[1753704563518,0.71,191.88,191.87,114.24]
[1753704564088,11.77990348,191.88,191.87,88.24]
[1753704564300,11.77990348,191.88,191.81,99.37161074]
[1753704564499,6.53831291,191.87,191.81,130.69831291]
[1753704564705,0.68,191.86,191.84,26.0]
[1753704565423,5.21240552,191.85,191.84,26.0]
[1753704565601,5.21240552,191.85,191.81,88.3]
[1753704565602,11.75071843,191.85,191.81,88.3]
[1753704565923,0.68,191.84,191.81,88.3]
[1753704566309,0.68,191.83,191.81,88.3]
[1753704566504,0.68,191.82,191.81,88.3]
[1753704566696,0.68,191.84,191.81,88.3]
[1753704566902,5.88831291,191.88,191.82,5.85831291]
[1753704567096,0.68,191.86,191.82,5.85831291]
[1753704567431,0.68,191.85,191.82,5.85831291]
[1753704568729,0.71,191.88,191.84,5.85831291]
[1753704568905,0.71,191.88,191.85,5.85831291]
[1753704569644,0.68,191.87,191.85,5.85831291]
[1753704570236,0.03,191.88,191.86,5.85831291]
[1753704570434,0.03,191.88,191.87,5.85831291]
[1753704573315,0.03,191.88,191.87,11.35449824]
[1753704573707,0.03,191.88,191.87,99.59449824]
[1753704573921,0.03,191.88,191.87,100.11568445]
[1753704574121,0.03,191.88,191.87,116.90036842]
[1753704574304,0.03,191.88,191.87,116.37918221]
[1753704575723,0.03,191.88,191.87,136.13449824]
[1753704578114,0.03,191.88,191.87,152.91918221]
[1753704579007,0.03,191.91,191.9,88.18]
[1753704579212,0.03,191.92,191.9,155.04083293]
[1753704579409,0.03,191.92,191.91,6.14263605]
[1753704580214,0.03,191.92,191.91,11.35341193]
[1753704580728,0.03,191.92,191.91,11.87448951]
[1753704580921,0.03,191.92,191.91,28.65917348]
[1753704581231,0.03,191.93,191.92,17.06900711]
[1753704581427,0.03,191.95,191.94,43.06900711]
[1753704581617,0.03,191.95,191.94,80.13000325]
[1753704582428,0.03,191.98,191.95,17.06900711]
[1753704582618,0.03,191.98,191.96,43.20357791]
[1753704582822,0.03,191.98,191.96,148.16826188]
[1753704583019,0.03,191.98,191.96,149.22372002]
[1753704584523,0.03,191.98,191.96,154.43313864]
[1753704584721,0.03,192.0,191.99,42.78468397]
[1753704584923,0.03,192.0,191.99,91.84649339]
[1753704585138,0.03,192.0,191.99,180.02649339]
[1753704585417,0.2,192.01,192.0,17.06900711]
[1753704585633,0.2,192.01,192.0,116.96563293]
[1753704586260,0.03,192.04,192.03,18.71780711]
[1753704586460,0.71,192.1,192.06,26.0]
[1753704586746,0.71,192.1,192.09,31.85831291]
[1753704586943,0.71,192.1,192.09,68.41831291]
[1753704588359,0.2,192.12,192.09,68.41831291]
[1753704588533,0.2,192.12,192.11,6.14263605]
[1753704588732,0.2,192.12,192.11,42.68263605]
[1753704588932,0.2,192.12,192.11,47.88798715]
[1753704589233,0.2,192.12,192.11,42.68263605]
[1753704590141,0.91,192.12,192.11,6.14263605]
[1753704590470,0.91,192.12,192.11,68.68263605]
[1753704590675,6.11508015,192.12,192.11,62.54]
[1753704590836,6.11508015,192.12,192.11,32.14263605]
[1753704591039,0.91,192.12,192.11,32.14263605]
[1753704591672,6.11508015,192.12,192.11,26.28432314]
[1753704592039,6.11508015,192.12,192.11,26.0]
[1753704593768,6.11508015,192.12,192.1,0.28432314]
[1753704593966,6.11508015,192.12,192.11,26.0]
[1753704593967,5.40508015,192.12,192.11,26.0]
[1753704594662,6.11508015,192.12,192.11,26.0]
[1753704596467,6.11508015,192.12,192.09,0.28432314]
[1753704596676,9.37617127,192.1,192.06,36.52]
[1753704596848,10.08617127,192.09,192.04,9.37617127]
[1753704597047,10.08617127,192.08,192.03,9.37617127]
[1753704597247,0.71,192.07,192.03,45.91617127]
[1753704597443,0.71,192.07,192.05,9.37617127]
[1753704597647,0.21,192.07,192.05,9.37617127]
[1753704597848,0.21,192.07,192.06,0.14216157]
[1753704598161,0.21,192.07,192.06,0.28432314]
[1753704598661,5.41643515,192.07,192.06,0.28432314]
[1753704599054,0.21,192.07,192.06,0.28432314]
[1753704599444,5.2059538,192.09,192.06,0.28432314]
[1753704599661,5.91565606,192.1,192.06,9.66049441]
[1753704600042,0.74,192.1,192.08,0.28432314]
[1753704600243,0.74,192.1,192.08,9.66049441]
[1753704601748,0.03,192.1,192.08,9.66049441]
[1753704601950,10.04617127,192.09,192.04,0.06]
[1753704602162,9.37617127,192.07,192.04,88.36]
[1753704602369,5.20697734,192.05,192.04,88.36]
[1753704602571,5.87697734,192.05,192.04,88.36]
[1753704602776,5.87697734,192.05,192.04,0.06]
[1753704603146,0.67,192.05,192.04,26.06]
[1753704604586,15.25314861,192.05,192.04,0.06]
[1753704605369,0.67,192.05,192.04,0.06]
[1753704605750,0.67,192.07,192.04,0.06]
[1753704605974,0.17,192.07,192.04,0.06]
[1753704606152,9.54617127,192.07,192.04,0.06]
[1753704606862,0.17,192.07,192.04,9.43617127]
[1753704607080,0.03,192.1,192.06,9.37617127]
[1753704607371,0.03,192.1,192.07,0.28432314]
[1753704607578,0.03,192.1,192.07,35.66049441]
[1753704607952,0.7,192.1,192.07,35.66049441]
[1753704608459,0.67,192.09,192.07,26.28432314]
[1753704608862,0.03,192.1,192.09,0.28432314]
[1753704609079,0.03,192.1,192.09,88.58432314]
[1753704609454,0.03,192.1,192.09,97.96049441]
[1753704609863,0.03,192.1,192.09,98.65049441]
[1753704610155,0.03,192.1,192.09,135.21049441]
[1753704611054,0.03,192.1,192.09,134.52049441]
[1753704611880,0.03,192.1,192.09,88.3]
[1753704612175,0.7,192.1,192.09,88.58432314]
[1753704612676,0.7,192.1,192.09,88.3]
[1753704613079,0.7,192.1,192.09,88.58432314]
[1753704613370,5.90562207,192.1,192.09,88.3]
[1753704613610,15.28179334,192.1,192.09,88.3]
[1753704614554,10.07617127,192.1,192.09,88.3]
[1753704614753,6.56232096,192.1,192.09,88.3]
[1753704614953,0.7,192.1,192.09,88.3]
[1753704615164,0.03,192.1,192.09,88.3]
[1753704615568,0.03,192.1,192.07,0.28432314]
[1753704615778,0.03,192.1,192.07,6.8366441]
[1753704616467,0.03,192.1,192.07,43.4166441]
[1753704617882,0.03,192.1,192.07,42.7266441]
[1753704618184,0.7,192.1,192.07,42.7266441]
[1753704618588,0.03,192.1,192.07,42.7266441]
[1753704619162,0.67,192.09,192.08,26.28432314]
[1753704619362,0.67,192.09,192.08,26.0]
[1753704619562,6.53232096,192.09,192.08,26.0]
[1753704619963,0.67,192.09,192.08,26.0]
[1753704620363,11.73821403,192.09,192.08,26.0]
[1753704620566,6.53232096,192.09,192.08,26.0]
[1753704620794,0.67,192.09,192.08,26.0]
[1753704620965,6.53232096,192.09,192.08,26.0]
[1753704621368,11.73821403,192.09,192.08,26.0]
[1753704622289,5.87589307,192.09,192.08,26.0]
[1753704622477,0.67,192.09,192.08,26.0]
[1753704622677,5.87589307,192.09,192.08,26.0]
[1753704622995,0.67,192.09,192.08,26.0]
[1753704623186,11.09803063,192.1,192.08,26.0]
[1753704623494,5.90570967,192.1,192.08,26.0]
[1753704623699,11.76803063,192.1,192.08,26.0]
[1753704624269,0.67,192.09,192.08,26.0]
[1753704625994,5.89232096,192.1,192.08,26.0]
[1753704626286,11.09794575,192.1,192.08,26.0]
[1753704626679,0.03,192.1,192.08,26.0]
[1753704627591,6.53232096,192.09,192.05,89.0]
[1753704627796,5.86232096,192.06,192.04,0.06]
[1753704627999,42.43232096,192.1,192.04,0.06]
[1753704628000,6.53232096,192.05,192.04,0.06]
[1753704629301,5.86232096,192.05,192.04,0.06]
[1753704629475,5.86232096,192.06,192.04,0.06]
[1753704630781,6.58232096,192.06,192.04,0.06]
[1753704631468,5.86232096,192.05,192.04,0.06]
[1753704637310,0.72,192.09,192.04,0.06]
[1753704637500,5.86232096,192.05,192.04,0.06]
[1753704637809,0.72,192.08,192.04,0.06]
[1753704637998,5.86232096,192.05,192.04,0.06]
[1753704638310,36.57,192.1,192.04,0.75]
[1753704638619,5.86232096,192.08,192.04,89.75]
[1753704639206,5.86232096,192.09,192.05,0.28432314]
[1753704639510,6.58232096,192.09,192.05,0.28432314]
[1753704640018,6.58232096,192.08,192.05,0.28432314]
[1753704640388,5.86232096,192.08,192.05,0.28432314]
[1753704640606,36.57,192.1,192.04,0.06]
[1753704640607,5.86232096,192.06,192.04,0.06]
[1753704640784,5.86232096,192.05,192.04,0.06]
[1753704641213,5.86232096,192.07,192.04,1.03432314]
[1753704641390,37.29,192.1,192.05,0.69]
[1753704641720,5.86232096,192.09,192.06,0.28432314]
[1753704642185,6.58232096,192.09,192.06,0.28432314]
[1753704642380,5.86232096,192.09,192.06,0.28432314]
[1753704642618,36.57,192.1,192.06,0.97432314]
[1753704642784,36.57,192.1,192.07,0.69]
[1753704642984,0.03,192.1,192.08,6.8366441]
[1753704643415,0.03,192.1,192.09,0.69]
[1753704643697,0.03,192.1,192.09,89.97432314]
[1753704644717,0.03,192.1,192.09,113.14191737]
[1753704644884,0.03,192.1,192.09,112.62132807]
[1753704646581,0.2,192.12,192.09,112.62132807]
[1753704646582,0.2,192.12,192.11,26.0]
[1753704646829,0.2,192.12,192.11,85.97186318]
[1753704647110,0.03,192.13,192.12,111.73132807]
[1753704647304,0.03,192.13,192.12,112.42132807]
[1753704647510,0.03,192.13,192.12,259.62132807]
[1753704648094,0.03,192.14,192.13,17.06900711]
[1753704648286,0.03,192.15,192.14,30.80642807]
[1753704648623,0.03,192.15,192.14,31.49642807]
[1753704648784,0.03,192.15,192.14,68.03642807]
[1753704648984,0.03,192.15,192.14,31.49642807]
[1753704649305,0.03,192.15,192.14,68.05642807]
[1753704649689,0.03,192.15,192.14,68.5768819]
[1753704651798,0.03,192.18,192.17,42.78468397]
[1753704651997,0.03,192.18,192.17,233.21170065]
[1753704652203,0.03,192.18,192.17,233.38132807]
[1753704654805,0.72,192.25,192.2,88.74]
[1753704655001,0.72,192.25,192.24,5.86232096]
[1753704655204,0.72,192.27,192.25,0.28432314]
[1753704655515,26.35093202,192.36,192.25,0.28432314]
[1753704655516,0.72,192.26,192.25,6.1466441]
[1753704655814,0.72,192.26,192.25,89.02432314]
[1753704659419,0.72,192.28,192.25,94.8866441]
[1753704659629,0.1,192.29,192.25,94.8866441]
[1753704659794,0.72,192.27,192.25,94.8866441]
[1753704660120,0.82,192.29,192.26,5.86232096]
[1753704660321,0.72,192.28,192.27,0.28432314]
[1753704660905,0.1,192.29,192.27,6.1466441]
[1753704661223,0.1,192.29,192.28,6.1466441]
[1753704662027,0.8,192.29,192.28,0.28432314]
[1753704662228,6.66232096,192.29,192.27,88.74]
[1753704662425,5.86232096,192.28,192.27,88.74]
[1753704662724,6.56232096,192.28,192.27,88.74]
[1753704662924,0.1,192.29,192.28,0.28432314]
[1753704663217,0.1,192.29,192.27,88.74]
[1753704663409,6.56232096,192.28,192.27,88.74]
[1753704664215,6.56232096,192.28,192.24,89.02432314]
[1753704664425,5.86232096,192.25,192.24,89.02432314]
[1753704664629,6.56232096,192.25,192.24,0.28432314]
[1753704664804,6.56232096,192.25,192.17,166.58231507]
[1753704664805,6.56232096,192.25,192.15,6.52232096]
[1753704665001,5.86232096,192.19,192.14,88.74]
[1753704665230,0.7,192.18,192.15,36.64]
[1753704665407,0.7,192.17,192.15,36.64]
[1753704665611,0.7,192.17,192.13,5.2047736]
[1753704665612,5.86232096,192.16,192.13,41.8647736]
[1753704665801,6.56232096,192.17,192.16,26.28432314]
[1753704666002,6.56232096,192.17,192.13,41.8647736]
[1753704666734,6.56232096,192.17,192.16,26.28432314]
[1753704667033,6.56232096,192.17,192.16,26.0]
[1753704667323,11.76629591,192.17,192.12,0.06]
[1753704667536,5.86232096,192.14,192.12,0.06]
[1753704667697,5.86232096,192.13,192.12,0.06]
[1753704667903,6.56232096,192.13,192.12,0.06]
[1753704668117,6.56232096,192.13,192.12,26.34432314]
[1753704668433,6.56232096,192.13,192.12,26.06]
[1753704668620,6.56232096,192.13,192.12,26.34432314]
[1753704669132,6.56232096,192.13,192.12,0.06]
[1753704669304,5.86232096,192.14,192.12,0.06]
[1753704669503,6.56232096,192.14,192.12,26.06]
[1753704669816,6.56232096,192.14,192.13,0.28432314]
[1753704670400,5.86232096,192.15,192.13,0.28432314]
[1753704670634,5.86232096,192.15,192.13,26.28432314]
[1753704671141,6.56232096,192.15,192.13,26.28432314]
[1753704671320,0.7,192.14,192.13,26.28432314]
[1753704671829,5.86232096,192.15,192.13,26.28432314]
[1753704672138,6.56232096,192.15,192.13,26.28432314]
[1753704672318,6.56232096,192.15,192.13,31.48907998]
[1753704672840,6.56232096,192.15,192.13,26.28432314]
[1753704673021,6.56232096,192.14,192.13,26.28432314]
[1753704673216,6.56232096,192.14,192.12,0.06]
[1753704673418,6.56232096,192.13,192.12,0.06]
[1753704673618,5.86232096,192.13,192.12,0.06]
[1753704673841,6.56232096,192.13,192.12,0.06]
[1753704675532,5.86232096,192.15,192.12,0.06]
[1753704675742,5.86232096,192.14,192.12,0.06]
[1753704675924,0.7,192.15,192.12,0.06]
[1753704675925,0.73,192.18,192.13,0.14216157]
[1753704676122,0.03,192.18,192.14,0.14216157]
[1753704676427,5.86232096,192.15,192.14,0.14216157]
[1753704676637,0.7,192.17,192.14,0.14216157]
[1753704676819,5.86232096,192.15,192.14,0.14216157]
[1753704677427,0.7,192.16,192.14,0.14216157]
[1753704677628,5.86232096,192.15,192.14,0.14216157]
[1753704678328,0.7,192.16,192.14,0.14216157]
[1753704678537,5.86232096,192.15,192.14,0.14216157]
[1753704678928,5.86232096,192.16,192.14,0.14216157]
[1753704679643,5.86232096,192.15,192.14,0.14216157]
[1753704680018,6.56232096,192.15,192.14,0.14216157]
[1753704680220,0.7,192.15,192.14,0.14216157]
[1753704680746,0.7,192.15,192.14,89.02432314]
[1753704681439,5.23348786,192.18,192.14,89.02432314]
[1753704681440,5.86232096,192.17,192.15,0.14216157]
[1753704681820,6.56232096,192.17,192.15,0.14216157]
[1753704682231,5.86232096,192.16,192.15,0.14216157]
[1753704683145,6.56232096,192.17,192.15,0.14216157]
[1753704683340,0.7,192.16,192.15,0.14216157]
[1753704683520,6.56232096,192.16,192.15,0.14216157]
[1753704685746,6.56232096,192.16,192.14,88.74]
[1753704686048,0.03,192.18,192.14,88.74]
[1753704686049,6.56232096,192.15,192.14,88.74]
[1753704686429,0.7,192.15,192.14,88.74]
[1753704686746,6.56232096,192.15,192.12,88.94216157]
[1753704686933,5.86232096,192.15,192.12,88.94216157]
[1753704687128,0.7,192.14,192.12,88.94216157]
[1753704687445,6.56232096,192.14,192.12,88.94216157]
[1753704688031,5.86232096,192.14,192.12,94.14714766]
[1753704688528,5.86232096,192.15,192.13,0.14216157]
[1753704688857,5.86232096,192.16,192.13,0.80216157]
[1753704689028,5.86232096,192.17,192.13,0.80216157]
[1753704689430,5.86232096,192.16,192.13,0.80216157]
[1753704689631,5.86232096,192.16,192.15,0.28432314]
[1753704691462,11.77654426,192.16,192.12,0.06]
[1753704691637,11.0671302,192.13,192.12,0.06]
[1753704691827,47.6671302,192.13,192.12,0.06]
[1753704692033,48.3771302,192.13,192.12,0.06]
[1753704692874,48.3771302,192.13,192.08,0.06]
[1753704692875,5.86232096,192.09,192.08,0.06]
[1753704693230,6.57232096,192.09,192.08,0.06]
[1753704693628,43.19232096,192.09,192.08,0.06]
[1753704694636,5.86232096,192.09,192.08,0.06]
[1753704694831,36.62,192.1,192.08,0.06]
[1753704695029,0.71,192.13,192.08,0.06]
[1753704695030,5.86232096,192.09,192.08,0.06]
[1753704695562,37.33,192.12,192.08,0.06]
[1753704695747,5.86232096,192.09,192.08,0.06]
[1753704696184,5.86232096,192.11,192.08,0.06]
[1753704697267,5.86232096,192.09,192.08,0.06]
[1753704697679,6.57232096,192.09,192.08,0.06]
[1753704698958,5.86232096,192.09,192.08,0.06]
[1753704699166,5.86232096,192.1,192.08,0.77]
[1753704699346,36.64,192.12,192.08,0.77]
[1753704699531,5.86232096,192.11,192.09,0.71]
[1753704699733,5.86232096,192.11,192.1,0.71]
[1753704700228,5.86232096,192.11,192.08,0.34432314]
[1753704700542,5.86232096,192.1,192.08,0.34432314]
[1753704701543,0.71,192.14,192.08,5.55042062]
[1753704701749,5.86232096,192.13,192.09,0.71]
[1753704702837,5.86232096,192.13,192.1,0.28432314]
[1753704703692,5.86232096,192.13,192.1,0.99432314]
[1753704704039,36.66,192.14,192.11,0.71]
[1753704704251,5.86232096,192.15,192.11,0.71]
[1753704704655,5.86232096,192.15,192.13,26.0]
[1753704704849,5.86232096,192.15,192.13,114.74]
[1753704705052,6.57232096,192.16,192.13,114.74]
[1753704705349,0.71,192.16,192.13,114.74]
[1753704705555,5.86232096,192.16,192.13,119.94474419]
[1753704705761,42.52232096,192.17,192.14,0.28432314]
[1753704705965,0.74,192.18,192.14,0.28432314]
[1753704706194,5.89232096,192.18,192.14,0.28432314]
[1753704706496,6.60232096,192.18,192.14,0.28432314]
[1753704706774,6.57232096,192.17,192.14,0.28432314]
[1753704707175,5.86232096,192.15,192.13,114.74]
[1753704707386,6.57232096,192.14,192.13,114.74]
[1753704707744,0.03,192.18,192.13,114.74]
[1753704707745,5.86232096,192.15,192.13,114.74]
[1753704707956,6.57232096,192.15,192.13,114.74]
[1753704708466,5.86232096,192.15,192.13,114.74]
[1753704708640,0.71,192.17,192.13,114.74]
[1753704708840,6.57232096,192.17,192.14,0.28432314]
[1753704709066,5.86232096,192.17,192.14,5.48866616]
[1753704709252,42.55232096,192.18,192.14,5.48866616]
[1753704709460,43.26232096,192.18,192.14,5.48866616]
[1753704710264,43.26232096,192.18,192.14,94.22866616]
[1753704710668,42.55232096,192.18,192.14,94.22866616]
[1753704710879,6.57232096,192.17,192.14,94.22866616]
[1753704711042,5.86232096,192.16,192.14,89.02432314]
[1753704711358,0.71,192.15,192.14,89.02432314]
[1753704711871,6.57232096,192.15,192.14,88.74]
[1753704712072,5.86232096,192.15,192.14,88.74]
[1753704712275,5.86232096,192.16,192.14,88.74]
[1753704712652,6.57232096,192.17,192.14,88.74]
[1753704712973,6.57232096,192.17,192.15,0.28432314]
[1753704713150,5.89232096,192.18,192.15,0.28432314]
[1753704713870,5.89232096,192.18,192.15,0.99432314]
[1753704714168,0.03,192.18,192.16,0.71]
[1753704715387,0.03,192.18,192.17,0.99432314]
[1753704715686,0.03,192.18,192.17,89.73432314]
[1753704716186,0.03,192.18,192.17,94.938049]
[1753704716344,0.03,192.18,192.17,94.228049]
[1753704717973,0.03,192.18,192.17,94.938049]
[1753704718173,0.03,192.18,192.17,137.94074254]
[1753704718378,0.03,192.18,192.17,137.42036996]
[1753704718677,0.03,192.18,192.17,154.20505393]
[1753704719666,0.03,192.19,192.17,154.20505393]
[1753704719880,0.03,192.2,192.19,43.06900711]
[1753704720182,0.03,192.2,192.19,90.79451241]
[1753704720387,0.03,192.2,192.19,91.50451241]
[1753704722094,0.03,192.2,192.19,180.24451241]
[1753704723193,0.03,192.21,192.2,17.06900711]
[1753704723398,0.03,192.21,192.2,24.17161943]
[1753704723770,5.89232096,192.28,192.25,0.28432314]
[1753704723971,5.86232096,192.26,192.24,151.35]
[1753704724191,5.86232096,192.26,192.24,114.71]
[1753704724371,0.7,192.25,192.24,114.99432314]
[1753704725976,0.7,192.25,192.24,114.71]
[1753704726188,6.56232096,192.25,192.2,36.64]
[1753704726394,5.86232096,192.22,192.2,36.64]
[1753704726702,5.86232096,192.24,192.2,36.64]
[1753704726874,5.86232096,192.24,192.21,0.28432314]
[1753704727070,0.7,192.23,192.22,26.28432314]
[1753704727674,0.7,192.25,192.23,0.28432314]
[1753704727874,0.7,192.27,192.25,26.0]
[1753704728091,0.7,192.27,192.25,0.28432314]
[1753704728679,0.7,192.26,192.25,0.28432314]
[1753704729086,0.7,192.26,192.25,26.28432314]
[1753704730002,0.7,192.26,192.25,31.4858836]
[1753704730500,0.7,192.26,192.25,26.28432314]
[1753704730868,0.03,192.28,192.27,26.0]
[1753704731068,0.03,192.28,192.27,68.7866441]
[1753704731373,0.03,192.28,192.27,26.28432314]
[1753704731572,0.03,192.28,192.27,62.92432314]
[1753704731798,0.73,192.28,192.27,62.92432314]
[1753704731976,0.73,192.28,192.27,26.0]
[1753704733174,0.03,192.28,192.27,26.28432314]
[1753704733576,0.03,192.28,192.27,32.1466441]
[1753704733773,0.03,192.28,192.27,38.06766349]
[1753704733998,0.03,192.28,192.27,163.43766349]
[1753704734476,0.03,192.28,192.27,157.5166441]
[1753704734881,0.03,192.28,192.27,151.65432314]
[1753704735085,0.73,192.28,192.27,151.65432314]
[1753704735305,6.59232096,192.28,192.27,114.71]
[1753704735504,6.59232096,192.28,192.27,88.71]
[1753704735697,0.73,192.28,192.27,88.71]
[1753704736688,0.03,192.28,192.27,88.71]
[1753704736889,0.03,192.28,192.27,88.99432314]
[1753704737098,0.03,192.28,192.27,94.8566441]
[1753704737991,0.03,192.28,192.27,100.05766349]
[1753704738295,0.03,192.28,192.27,136.75766349]
[1753704738496,0.03,192.28,192.27,137.47766349]
[1753704739889,0.03,192.28,192.27,131.5566441]
[1753704740514,0.03,192.28,192.27,131.5366441]
[1753704741087,0.73,192.28,192.27,131.5366441]
[1753704741399,0.73,192.28,192.27,88.99432314]
[1753704741918,0.73,192.28,192.27,88.71]
[1753704742617,5.9307489,192.28,192.27,88.71]
[1753704743126,11.79306986,192.28,192.27,88.71]
[1753704743426,11.79306986,192.28,192.24,26.0]
[1753704743583,5.86232096,192.27,192.21,42.54232096]
[1753704743784,0.7,192.26,192.21,131.25232096]
[1753704744008,6.56232096,192.26,192.21,94.57232096]
[1753704744196,0.7,192.25,192.24,26.0]
[1753704745894,6.56232096,192.25,192.22,88.71]
[1753704746326,0.7,192.24,192.22,88.71]
[1753704746613,5.86232096,192.23,192.22,88.71]
[1753704746797,6.56232096,192.23,192.22,26.0]
[1753704746995,0.7,192.23,192.22,26.0]
[1753704747190,6.56232096,192.26,192.22,26.0]
[1753704747396,0.7,192.25,192.22,26.0]
[1753704747821,0.7,192.27,192.23,5.86232096]
[1753704748018,0.7,192.26,192.23,5.86232096]
[1753704748205,5.89232096,192.28,192.22,120.57232096]
[1753704748407,0.7,192.25,192.22,114.71]
[1753704748723,0.7,192.24,192.22,114.71]
[1753704748916,0.7,192.23,192.22,114.99432314]
[1753704749515,0.7,192.25,192.22,114.99432314]
[1753704749914,6.56232096,192.27,192.22,114.99432314]
[1753704750109,6.56232096,192.27,192.22,120.8566441]
[1753704750304,11.06340624,192.27,192.22,120.8566441]
[1753704750508,0.7,192.26,192.22,120.8566441]
[1753704750711,0.7,192.26,192.22,121.5766441]
[1753704751029,0.7,192.26,192.22,120.8566441]
[1753704751601,0.66,192.25,192.22,114.99432314]
[1753704751931,0.66,192.24,192.22,114.99432314]
[1753704752105,0.66,192.24,192.22,114.71]
[1753704752724,0.66,192.23,192.22,114.71]
[1753704753028,5.20188322,192.24,192.22,26.0]
[1753704753201,5.86188322,192.24,192.22,26.0]
[1753704754910,5.86188322,192.24,192.2,5.86232096]
[1753704755103,5.20188322,192.24,192.2,5.86232096]
[1753704755303,0.66,192.23,192.2,5.86232096]
[1753704755717,0.66,192.23,192.21,0.06]
[1753704755918,0.66,192.22,192.21,26.06]
[1753704757628,5.86237228,192.22,192.21,26.06]
[1753704757832,0.66,192.22,192.21,26.06]
[1753704758210,5.86191749,192.24,192.21,26.06]
[1753704758411,0.66,192.23,192.21,26.06]
[1753704759013,5.8621478,192.23,192.21,26.06]
[1753704759335,5.20190668,192.24,192.21,26.06]
[1753704759521,0.66,192.25,192.21,26.06]
[1753704759522,5.86162585,192.25,192.21,26.06]
[1753704760051,5.2013282,192.26,192.22,1.00432314]
[1753704760346,0.66,192.27,192.23,6.58232096]
[1753704760347,5.86110592,192.27,192.23,6.58232096]
[1753704760509,0.03,192.28,192.24,5.86232096]
[1753704760835,0.03,192.28,192.25,6.58232096]
[1753704761018,0.03,192.28,192.25,5.86232096]
[1753704761220,0.03,192.28,192.25,6.58232096]
[1753704761424,0.03,192.28,192.26,6.58232096]
[1753704761627,0.03,192.28,192.27,5.86232096]
[1753704762012,0.03,192.28,192.27,6.8666441]
[1753704762627,0.66,192.37,192.32,0.14216157]
[1753704762816,5.86232096,192.34,192.3,88.71]
[1753704763135,6.52232096,192.33,192.29,26.0]
[1753704763334,0.66,192.32,192.29,26.0]
[1753704763537,11.72151842,192.34,192.29,31.86232096]
[1753704763710,0.66,192.37,192.33,5.86232096]
[1753704763940,0.66,192.37,192.35,5.86232096]
[1753704764145,0.66,192.38,192.34,5.86232096]
[1753704764565,0.66,192.37,192.34,5.86232096]
[1753704764745,5.1966949,192.43,192.36,31.86232096]
[1753704764942,0.66,192.42,192.38,5.86232096]
[1753704765142,0.66,192.41,192.36,26.0]
[1753704765336,0.66,192.41,192.38,5.86232096]
[1753704765563,0.66,192.41,192.39,5.86232096]
[1753704765872,0.66,192.4,192.36,26.0]
[1753704766069,0.66,192.4,192.36,31.86232096]
[1753704766249,0.66,192.4,192.38,5.86232096]
[1753704766448,0.66,192.4,192.36,31.19851045]
[1753704766649,0.66,192.4,192.38,5.86232096]